fUSD/lending_fUSD_20240924
["ID","MTS","AMOUNT","RATE_DAILY","PERIOD"]
[339029928,1727142632347,-3235.89,0.00011405,2]
[339029929,1727142632356,-250.0,0.00011455,2]
[339029930,1727142632366,-150.0,0.00011507,2]
[339029931,1727142632375,-150.0,0.00011512,2]
[339029932,1727142632385,-999.99,0.00011513,2]
[339029933,1727142632395,-3629.52000723,0.00011513,2]
[339029934,1727142632406,-6370.46999277,0.00011513,2]
[339029935,1727142632416,-150.99,0.00011513,2]
[339029936,1727142632426,-657.64,0.00011513,2]
[339029937,1727142632435,-180.76,0.00011514,2]
[339029938,1727142632445,-10413.31031039,0.00011514,2]
[339029939,1727142632460,-3327.66179533,0.00011514,2]
[339029940,1727142632472,-23409.66789428,0.00011514,2]
[339029941,1727142632481,-1187.31,0.00011514,2]
[339029942,1727142632491,-150.6428316,0.00011515,2]
[339029943,1727142632500,-180.76,0.00011543,2]
[339029944,1727142632509,-180.76,0.00011572,2]
[339029945,1727142632518,-1385.03,0.00011667,2]
[339029946,1727142632528,-1369.2813,0.00011669,2]
[339029947,1727142632538,-299.99,0.00011669,2]
[339029948,1727142632547,-605.22,0.00011674,2]
[339029949,1727142632557,-402.23,0.00011741,2]
[339029950,1727142632566,-179.68,0.00011832,2]
[339029951,1727142632575,-293.48,0.00011878,2]
[339029952,1727142632584,-1000.0,0.00011919,2]
[339029953,1727142632594,-420.0,0.00012396,2]
[339029954,1727142632604,-167.86,0.00012445,2]
[339029955,1727142632613,-167.41,0.00012445,2]
[339029956,1727142632623,-404.48494116,0.00012484,2]
[339029957,1727142632633,-261.1396,0.000126,2]
[339029958,1727142632642,-1282.6985,0.000126,2]
[339029959,1727142632653,-274.32684427,0.000126,2]
[339029960,1727142632662,-2000.0,0.00012698,2]
[339029961,1727142632673,-511.5947,0.00012698,2]
[339029962,1727142632684,-12402.7363,0.00012698,2]
[339029963,1727142632694,-506.4479,0.000127,2]
[339029964,1727142632703,-7649.3467352,0.000127,2]
[339029965,1727142632716,-13791.01,0.000127,2]
[339029966,1727142637141,2179.89833506,0.00011084,2]
[339029972,1727142638475,-1070.1255496,0.000127,2]
[339029973,1727142638521,-843.27,0.000127,2]
[339029974,1727142638533,-34478.2133152,0.000127,2]
[339029975,1727142638544,-1820.5588,0.000127,2]
[339029976,1727142638555,-1000.0,0.000127,2]
[339029977,1727142638565,-321.87966458,0.000127,2]
[339029978,1727142638576,-2743.1132,0.00012712,2]
[339029979,1727142638585,-1000.0,0.00012736,2]
[339029980,1727142638595,-1000.0,0.00012736,2]
[339029981,1727142638606,-1000.0,0.00012736,2]
[339029982,1727142638616,-1000.0,0.00012736,2]
[339029983,1727142638628,-786.41751764,0.00012736,2]
[339030037,1727142640040,-213.58248236,0.00012736,2]
[339030038,1727142640049,-1000.0,0.00012736,2]
[339030039,1727142640058,-238.6759872,0.00012736,2]
[339030040,1727142640177,-761.3240128,0.00012736,2]
[339030041,1727142640187,-1000.0,0.00012736,2]
[339030042,1727142640197,-1000.0,0.00012736,2]
[339030043,1727142640206,-244.14943154,0.00012736,2]
[339030046,1727142643119,-301.25385499,0.00012736,2]
[339030047,1727142643289,-454.59671347,0.00012736,2]
[339030048,1727142643299,-1000.0,0.00012736,2]
[339030049,1727142643308,-1000.0,0.00012736,2]
[339030050,1727142643320,-1000.0,0.00012736,2]
[339030051,1727142643330,-1000.0,0.00012736,2]
[339030052,1727142643339,-1000.0,0.00012736,2]
[339030053,1727142643348,-1000.0,0.00012736,2]
[339030054,1727142643358,-1000.0,0.00012736,2]
[339030055,1727142643367,-1000.0,0.00012736,2]
[339030056,1727142643378,-1141.8498,0.00012736,2]
[339030057,1727142643387,-568.437,0.00012744,2]
[339030058,1727142643397,-181.20172692,0.00012744,2]
[339030059,1727142643407,-1238.36985144,0.00012764,2]
[339030060,1727142643417,-464.94594435,0.00012773,2]
[339030061,1727142643426,-321.07893018,0.00012773,2]
[339030062,1727142643437,-1238.36985144,0.00012782,2]
[339030063,1727142643447,-150.0,0.0001279,2]
[339030064,1727142643456,-558.0,0.0001279,2]
[339030065,1727142643466,-933.0,0.0001279,2]
[339030066,1727142643476,-503.39100101,0.0001279,2]
[339030070,1727142643632,-50.60899899,0.0001279,2]
[339030072,1727142643642,-1903.0,0.0001279,2]
[339030073,1727142643652,-1914.159,0.0001279,2]
[339030074,1727142643661,-248.68,0.0001279,2]
[339030076,1727142643670,-807.0,0.0001279,2]
[339030077,1727142643679,-3354.111,0.0001279,2]
[339030078,1727142643689,-5896.823,0.0001279,2]
[339030079,1727142643698,-13557.968,0.0001279,2]
[339030080,1727142643708,-280.395,0.0001279,2]
[339030081,1727142643717,-746.54656784,0.0001279,2]
[339030082,1727142643729,-405.56143216,0.0001279,2]
[339030083,1727142643738,-163.97790449,0.0001279,2]
[339030084,1727142646046,-224.0508,0.000126,2]
[339030085,1727142646055,-291.84789064,0.0001279,2]
[339030087,1727142747534,160.0,0.00030606,30]
[339030088,1727142766250,388.09804676,0.00030606,30]
[339030089,1727142768509,500.0,0.00030606,30]
[339030090,1727142768968,244.80410913,0.00030606,30]
[339030091,1727142769002,500.0,0.00030606,30]
[339030092,1727142769271,174.93646322,0.00030606,30]
[339030093,1727142773610,500.0,0.00030606,30]
[339030094,1727142773868,282.92622028,0.00030606,30]
[339030095,1727142781562,500.0,0.00030607,30]
[339030096,1727142781869,500.0,0.00030607,30]
[339030097,1727142782267,500.0,0.00030607,30]
[339030098,1727142782586,500.0,0.00030607,30]
[339030099,1727142783280,412.2482,0.00030607,30]
[339030100,1727142786746,75284.01290716,0.00030607,30]
[339030101,1727142791526,353.10578324,0.00030607,30]
[339030118,1727142809066,500.0,0.00030607,30]
[339030119,1727142809412,500.0,0.00030607,30]
[339030120,1727142809692,500.0,0.00030607,30]
[339030121,1727142810094,500.0,0.00030607,30]
[339030122,1727142810267,500.0,0.00030607,30]
[339030123,1727142810553,500.0,0.00030607,30]
[339030124,1727142810809,500.0,0.00030607,30]
[339030125,1727142811116,500.0,0.00030607,30]
[339030126,1727142811395,500.0,0.00030607,30]
[339030127,1727142811697,500.0,0.00030607,30]
[339030128,1727142811963,500.0,0.00030607,30]
[339030129,1727142812269,500.0,0.00030607,30]
[339030130,1727142812516,500.0,0.00030607,30]
[339030131,1727142812833,500.0,0.00030607,30]
[339030132,1727142813442,500.0,0.00030607,30]
[339030133,1727142813921,500.0,0.00030607,30]
[339030134,1727142814054,500.0,0.00030607,30]
[339030135,1727142814353,500.0,0.00030607,30]
[339030136,1727142814638,500.0,0.00030607,30]
[339030137,1727142814927,500.0,0.00030607,30]
[339030138,1727142815212,500.0,0.00030607,30]
[339030139,1727142815491,220.87261154,0.00030607,30]
[339030140,1727142820806,328.69049931,0.00030607,30]
[339030141,1727142833405,500.0,0.00030607,30]
[339030142,1727142833730,332.50729675,0.00030607,30]
[339030143,1727142853784,500.0,0.00030607,30]
[339030144,1727142854134,170.60338364,0.00030607,30]
[339030145,1727142856309,336.15063254,0.00030607,30]
[339030146,1727142867649,198.73715411,0.00030607,30]
[339030147,1727142867981,930.0,0.00030607,30]
[339030148,1727142868277,500.0,0.00030607,30]
[339030149,1727142868567,369.74386316,0.00030607,30]
[339030150,1727142870041,183.1927025,0.00030607,30]
[339030151,1727142874328,175.89087092,0.00030607,30]
[339030152,1727142884286,500.0,0.00030607,30]
[339030153,1727142884558,513.9753036,0.00030607,30]
[339030154,1727142895416,407.70147819,0.00030607,30]
[339030155,1727142924488,259.7,0.00010959,2]
[339030156,1727142925561,450.57430985,0.00030607,30]
[339030157,1727142939070,500.0,0.00030607,30]
[339030158,1727142939561,255.2508923,0.00030607,30]
[339030159,1727142948500,161.38141642,0.00030607,30]
[339030160,1727142973175,485.15496557,0.00030607,30]
[339030161,1727142986057,508.98801124,0.00030607,30]
[339030162,1727142997722,333.54376577,0.00030607,30]
[339030163,1727143010755,549.67153198,0.00030607,30]
[339030164,1727143012660,607.75450366,0.00030607,30]
[339030165,1727143013886,609.363018,0.00030607,30]
[339030166,1727143014267,500.0,0.00030607,30]
[339030167,1727143018536,500.0,0.00030607,30]
[339030168,1727143020871,501.71587248,0.00030607,30]
[339030169,1727143021320,562.13262919,0.00030607,30]
[339030170,1727143027158,623.6493927,0.00030607,30]
[339030171,1727143031996,500.0,0.00030607,30]
[339030172,1727143040881,500.0,0.00030607,30]
[339030173,1727143041233,154.65691602,0.00030607,30]
[339030174,1727143045813,519.00218807,0.00030607,30]
[339030175,1727143046194,634.67381294,0.00030607,30]
[339030176,1727143055069,500.0,0.00030607,30]
[339030177,1727143055370,164.19333428,0.00030607,30]
[339030178,1727143062274,518.5294194,0.00030607,30]
[339030179,1727143064426,195.0,0.00030607,30]
[339030180,1727143064579,544.82506846,0.00030607,30]
[339030181,1727143067084,576.17365466,0.00030607,30]
[339030182,1727143081146,526.15291052,0.00030609,30]
[339030183,1727143081437,622.22422288,0.00030609,30]
[339030184,1727143085587,557.7239417,0.00030609,30]
[339030185,1727143085756,566.11221224,0.00030609,30]
[339030186,1727143090131,542.04548263,0.00030609,30]
[339030187,1727143103165,500.0,0.00030609,30]
[339030188,1727143105261,500.0,0.00030609,30]
[339030189,1727143107616,500.0,0.00030609,30]
[339030190,1727143119122,534.0572803,0.00030609,30]
[339030191,1727143122388,500.0,0.00030609,30]
[339030192,1727143123324,1295.33,9.841e-05,2]
[339030193,1727143136425,500.0,0.00030609,30]
[339030194,1727143140218,545.03135847,0.00030609,30]
[339030195,1727143146691,150.49416189,0.00030609,30]
[339030196,1727143156246,523.58166951,0.00030609,30]
[339030197,1727143158810,800.0,0.00030609,30]
[339030198,1727143159142,400.1367908,0.00030609,30]
[339030199,1727143161335,576.98508554,0.00030609,30]
[339030200,1727143163905,577.90051759,0.00030609,30]
[339030201,1727143176130,500.0,0.00030609,30]
[339030202,1727143179064,596.65259515,0.00030609,30]
[339030203,1727143183013,1050.0,0.00011,2]
[339030204,1727143218725,506.44215626,0.00030609,30]
[339030205,1727143220444,500.0,0.00030609,30]
[339030206,1727143220798,151.75392446,0.00030609,30]
[339030207,1727143223705,511.42034352,0.00030609,30]
[339030208,1727143233174,311.02561986,0.00030609,30]
[339030209,1727143240735,500.0,0.00030609,30]
[339030210,1727143241054,500.0,0.00030609,30]
[339030211,1727143241473,500.0,0.00030609,30]
[339030212,1727143241848,500.0,0.00030609,30]
[339030213,1727143242135,500.0,0.00030609,30]
[339030214,1727143242419,500.0,0.00030609,30]
[339030215,1727143242714,158.67,0.00030609,30]
[339030216,1727143242863,560.07432024,0.00030609,30]
[339030217,1727143243542,284.90437686,0.00030609,30]
[339030218,1727143245295,525.85729096,0.00030609,30]
[339030219,1727143246047,516.88969879,0.00030609,30]
[339030220,1727143250345,500.0,0.00030609,30]
[339030221,1727143252818,551.85250696,0.00030609,30]
[339030222,1727143255241,518.41688237,0.00030609,30]
[339030223,1727143258607,511.76618116,0.00030609,30]
[339030224,1727143261139,417.61825051,0.00030609,30]
[339030225,1727143261332,510.36467489,0.00030609,30]
[339030226,1727143265919,526.06230964,0.00030609,30]
[339030227,1727143268264,516.85558511,0.00030609,30]
[339030228,1727143276258,503.54978031,0.00030609,30]
[339030229,1727143280904,508.93480309,0.00030609,30]
[339030230,1727143281367,504.46949076,0.00030609,30]
[339030231,1727143282248,518.99016343,0.00030609,30]
[339030232,1727143284547,515.97788477,0.00030609,30]
[339030233,1727143284954,508.05278584,0.00030609,30]
[339030234,1727143287462,503.84960807,0.00030609,30]
[339030235,1727143289884,504.07008005,0.00030609,30]
[339030236,1727143294017,501.43278717,0.00030609,30]
[339030237,1727143298185,504.86378753,0.00030609,30]
[339030238,1727143298757,505.4862771,0.00030609,30]
[339030239,1727143306486,500.0,0.00030609,30]
[339030240,1727143306652,500.0,0.00030609,30]
[339030241,1727143306986,500.0,0.00030609,30]
[339030242,1727143307259,500.0,0.00030609,30]
[339030243,1727143307556,500.0,0.00030609,30]
[339030244,1727143307852,500.0,0.00030609,30]
[339030245,1727143308119,152.52077715,0.00030609,30]
[339030247,1727143313793,500.0,0.00030609,30]
[339030248,1727143314091,500.0,0.00030609,30]
[339030249,1727143327437,503.80117663,0.00030609,30]
[339030250,1727143341905,150.0,0.00030609,30]
[339030251,1727143342213,150.0,0.00030609,30]
[339030252,1727143342505,288.41848511,0.00030609,30]
[339030253,1727143350008,531.92911802,0.00030609,30]
[339030254,1727143350839,500.0,0.00030609,30]
[339030255,1727143351160,500.0,0.00030609,30]
[339030256,1727143351454,500.0,0.00030609,30]
[339030257,1727143351765,405.32314584,0.00030609,30]
[339030258,1727143363070,525.7822634,0.00030609,30]
[339030260,1727143404385,507.53582195,0.0003061,30]
[339030261,1727143407588,506.87423558,0.0003061,30]
[339030262,1727143412203,500.0,0.0003061,30]
[339030263,1727143412487,629.57055105,0.0003061,30]
[339030264,1727143415146,478.89734202,0.0003061,30]
[339030265,1727143417399,501.53132287,0.0003061,30]
[339030266,1727143419747,502.40971313,0.0003061,30]
[339030267,1727143419929,-150.0,0.00011739,2]
[339030268,1727143419951,-195.89,0.00011739,2]
[339030269,1727143419971,-158.98,0.00011743,2]
[339030270,1727143419991,-250.0,0.00011753,2]
[339030271,1727143420014,-245.13,0.00011759,2]
[339030272,1727143422765,-57.43,0.00011759,2]
[339030273,1727143422785,-250.0,0.00011767,2]
[339030274,1727143422814,-250.0,0.0001177,2]
[339030275,1727143422835,-442.57,0.0001178,2]
[339030276,1727143425447,-1000.0,0.0001178,2]
[339030277,1727143427615,-1000.0,0.0001178,2]
[339030278,1727143427824,504.19175307,0.0003061,30]
[339030279,1727143428705,502.66572884,0.0003061,30]
[339030280,1727143430172,-1000.0,0.0001178,2]
[339030281,1727143435085,-700.0,0.0001178,2]
[339030282,1727143444674,500.0,0.0003061,30]
[339030283,1727143449005,510.24802975,0.0003061,30]
[339030284,1727143451734,502.71204398,0.0003061,30]
[339030285,1727143452912,3000.0,0.0003061,120]
[339030286,1727143456769,503.7118581,0.0003061,30]
[339030287,1727143461316,423.35432561,0.0003061,30]
[339030288,1727143463281,-1000.0,0.0001178,2]
[339030289,1727143464879,538.37554045,0.0003061,30]
[339030290,1727143469015,939.0,0.0003061,30]
[339030291,1727143469653,-13.26,0.0001178,2]
[339030292,1727143469675,-486.74,0.00011884,2]
[339030293,1727143493198,655.19,0.0003061,30]
[339030294,1727143493855,655.19,0.0003061,30]
[339030295,1727143494126,655.19,0.0003061,30]
[339030296,1727143494420,655.19,0.0003061,30]
[339030297,1727143494741,655.19,0.0003061,30]
[339030298,1727143495037,655.19,0.0003061,30]
[339030299,1727143495340,655.19,0.0003061,30]
[339030300,1727143495621,655.19,0.0003061,30]
[339030301,1727143495915,655.19,0.0003061,30]
[339030302,1727143496216,655.19,0.0003061,30]
[339030303,1727143496587,655.19,0.0003061,30]
[339030304,1727143496977,655.19,0.0003061,30]
[339030305,1727143497292,655.19,0.0003061,30]
[339030306,1727143497908,655.19,0.0003061,30]
[339030307,1727143498201,655.19,0.0003061,30]
[339030308,1727143498538,655.19,0.0003061,30]
[339030309,1727143499175,655.19,0.0003061,30]
[339030310,1727143499418,300.83,0.00010959,2]
[339030311,1727143499486,655.19,0.0003061,30]
[339030312,1727143499794,655.19,0.0003061,30]
[339030313,1727143500101,655.19,0.0003061,30]
[339030314,1727143500411,655.19,0.0003061,30]
[339030315,1727143500727,655.19,0.0003061,30]
[339030316,1727143500997,655.19,0.0003061,30]
[339030317,1727143501289,655.35,0.0003061,30]
[339030318,1727143519446,2000.0,0.0003061,30]
[339030319,1727143519819,2000.0,0.0003061,30]
[339030320,1727143520751,2000.0,0.0003061,30]
[339030321,1727143521052,2000.0,0.0003061,30]
[339030322,1727143521328,2000.0,0.0003061,30]
[339030323,1727143521628,2000.0,0.0003061,30]
[339030324,1727143521940,2000.0,0.0003061,30]
[339030325,1727143522242,2000.0,0.0003061,30]
[339030326,1727143522584,2000.0,0.0003061,30]
[339030327,1727143522873,2000.0,0.0003061,30]
[339030328,1727143523187,2000.0,0.0003061,30]
[339030329,1727143523480,2000.0,0.0003061,30]
[339030330,1727143523807,2000.0,0.0003061,30]
[339030331,1727143524008,2000.0,0.0003061,30]
[339030332,1727143524331,2000.0,0.0003061,30]
[339030333,1727143524670,2000.0,0.0003061,30]
[339030334,1727143524966,2000.0,0.0003061,30]
[339030335,1727143525237,2000.0,0.0003061,30]
[339030336,1727143525511,2000.0,0.0003061,30]
[339030337,1727143525762,1004.41306954,0.0003061,30]
[339030343,1727143559158,748.86,0.0003061,30]
[339030344,1727143559476,748.86,0.0003061,30]
[339030345,1727143559762,748.86,0.0003061,30]
[339030346,1727143560076,748.86,0.0003061,30]
[339030347,1727143560382,748.86,0.0003061,30]
[339030348,1727143560861,748.86,0.0003061,30]
[339030349,1727143561202,748.86,0.0003061,30]
[339030350,1727143561462,1000.0,0.0003061,30]
[339030351,1727143561501,748.86,0.0003061,30]
[339030352,1727143561744,748.86,0.0003061,30]
[339030353,1727143561775,1000.0,0.0003061,30]
[339030354,1727143562038,748.86,0.0003061,30]
[339030355,1727143562072,1000.0,0.0003061,30]
[339030356,1727143562379,1000.0,0.0003061,30]
[339030357,1727143562657,748.86,0.0003061,30]
[339030358,1727143562691,1000.0,0.0003061,30]
[339030359,1727143562974,748.86,0.0003061,30]
[339030360,1727143563005,181.61671092,0.0003061,30]
[339030361,1727143563282,748.86,0.0003061,30]
[339030362,1727143563601,748.86,0.0003061,30]
[339030363,1727143563907,748.86,0.0003061,30]
[339030364,1727143564216,748.86,0.0003061,30]
[339030365,1727143564749,748.86,0.0003061,30]
[339030366,1727143565157,748.86,0.0003061,30]
[339030367,1727143565362,748.86,0.0003061,30]
[339030368,1727143565666,748.86,0.0003061,30]
[339030369,1727143565964,748.86,0.0003061,30]
[339030370,1727143566248,748.86,0.0003061,30]
[339030371,1727143566604,748.86,0.0003061,30]
[339030372,1727143566981,748.91770631,0.0003061,30]
[339030373,1727143615200,150.0,0.0003061,30]
[339030374,1727143615473,150.0,0.0003061,30]
[339030375,1727143615779,150.0,0.0003061,30]
[339030376,1727143616061,150.0,0.0003061,30]
[339030377,1727143616368,150.0,0.0003061,30]
[339030378,1727143616651,150.0,0.0003061,30]
[339030379,1727143617053,150.0,0.0003061,30]
[339030380,1727143617366,150.0,0.0003061,30]
[339030381,1727143617635,202.59174386,0.0003061,30]
[339030394,1727143646989,160.0,0.0003061,30]
[339030395,1727143651180,772.88,0.0003061,30]
[339030396,1727143651509,772.88,0.0003061,30]
[339030397,1727143651817,772.88,0.0003061,30]
[339030398,1727143652082,772.88,0.0003061,30]
[339030399,1727143652396,772.88,0.0003061,30]
[339030400,1727143652695,772.88,0.0003061,30]
[339030401,1727143653029,772.88,0.0003061,30]
[339030402,1727143653341,772.88,0.0003061,30]
[339030403,1727143653680,772.88,0.0003061,30]
[339030404,1727143653993,772.88,0.0003061,30]
[339030405,1727143654321,772.88,0.0003061,30]
[339030406,1727143654643,772.88,0.0003061,30]
[339030407,1727143655118,772.88,0.0003061,30]
[339030408,1727143655257,772.88,0.0003061,30]
[339030409,1727143655573,772.88,0.0003061,30]
[339030410,1727143655854,772.88,0.0003061,30]
[339030411,1727143656186,772.88,0.0003061,30]
[339030412,1727143656507,772.88,0.0003061,30]
[339030413,1727143656755,772.88,0.0003061,30]
[339030414,1727143657039,772.88,0.0003061,30]
[339030415,1727143657288,772.88,0.0003061,30]
[339030416,1727143657532,772.88,0.0003061,30]
[339030417,1727143657788,772.88,0.0003061,30]
[339030418,1727143658093,772.98261513,0.0003061,30]
[339030419,1727143669559,1261.11,0.0003061,30]
[339030420,1727143669817,1261.11,0.0003061,30]
[339030421,1727143670088,1261.11,0.0003061,30]
[339030422,1727143670426,1261.11,0.0003061,30]
[339030423,1727143670752,1261.11,0.0003061,30]
[339030424,1727143671020,1261.11,0.0003061,30]
[339030425,1727143671298,1261.11,0.0003061,30]
[339030426,1727143671695,1261.11,0.0003061,30]
[339030427,1727143671923,1261.11,0.0003061,30]
[339030428,1727143672231,1261.11,0.0003061,30]
[339030429,1727143672507,1261.11,0.0003061,30]
[339030430,1727143672774,1261.11,0.0003061,30]
[339030431,1727143673442,1261.11,0.0003061,30]
[339030432,1727143674074,1261.11,0.0003061,30]
[339030433,1727143674350,1261.11,0.0003061,30]
[339030434,1727143674664,1261.11,0.0003061,30]
[339030435,1727143674944,1261.11,0.0003061,30]
[339030436,1727143675229,1261.11,0.0003061,30]
[339030437,1727143675546,1261.11,0.0003061,30]
[339030438,1727143675836,1261.11,0.0003061,30]
[339030439,1727143676102,1261.11,0.0003061,30]
[339030440,1727143676405,1261.11,0.0003061,30]
[339030441,1727143676712,1261.11,0.0003061,30]
[339030442,1727143677061,1261.28157026,0.0003061,30]
[339030443,1727143685571,530.93590494,0.0003061,30]
[339030452,1727143828299,231.0,0.0003061,120]
[339030463,1727143832177,-300.0,0.00011514,2]
[339030464,1727143832191,-150.0,0.00011515,2]
[339030465,1727143832200,-150.0,0.00011515,2]
[339030466,1727143832211,-150.36660538,0.00011515,2]
[339030467,1727143832222,-150.40003936,0.00011515,2]
[339030468,1727143832232,-150.0,0.00011515,2]
[339030469,1727143832242,-150.0,0.00011515,2]
[339030470,1727143832251,-150.23407707,0.00011515,2]
[339030471,1727143832263,-150.47219007,0.00011515,2]
[339030472,1727143832274,-150.41643117,0.00011515,2]
[339030473,1727143832284,-150.43548929,0.00011515,2]
[339030474,1727143832295,-517.91,0.00011745,2]
[339030475,1727143832305,-175.61,0.00011745,2]
[339030476,1727143832314,-250.0,0.00011757,2]
[339030477,1727143832324,-250.0,0.00011757,2]
[339030478,1727143832333,-3000.0,0.00011759,2]
[339030479,1727143832342,-2055.76,0.00011767,2]
[339030480,1727143832352,-1000.0,0.00011767,2]
[339030481,1727143832361,-175.61,0.00011803,2]
[339030482,1727143832371,-1295.33,0.00012105,2]
[339030483,1727143832380,-150.0,0.00012155,2]
[339030484,1727143832391,-350.4679521,0.00012384,2]
[339030485,1727143832401,-166.77,0.00012445,2]
[339030486,1727143832410,-166.56,0.00012445,2]
[339030487,1727143832419,-2820.271,0.000126,2]
[339030488,1727143832428,-314.36043996,0.000126,2]
[339030489,1727143832438,-499.99,0.00012636,2]
[339030490,1727143832447,-197.9,0.00012636,2]
[339030491,1727143832456,-327.98,0.00012636,2]
[339030492,1727143832466,-3176.2846,0.00012636,2]
[339030493,1727143832475,-420.0,0.00012646,2]
[339030494,1727143832485,-150.0,0.00012697,2]
[339030495,1727143832494,-500.0,0.00012698,2]
[339030496,1727143832504,-2000.0,0.00012698,2]
[339030497,1727143832514,-500.0,0.00012698,2]
[339030498,1727143832523,-200.0,0.00012698,2]
[339030499,1727143832534,-299.99,0.00012698,2]
[339030500,1727143832545,-280.395,0.00012698,2]
[339030501,1727143832554,-5896.529,0.00012698,2]
[339030502,1727143832564,-1147.0,0.00012698,2]
[339030503,1727143832574,-13575.141,0.00012698,2]
[339030504,1727143832583,-857.66,0.00012699,2]
[339030505,1727143832593,-4283.2073,0.000127,2]
[339030506,1727143832602,-2724.9953,0.000127,2]
[339030507,1727143832611,-416.2779,0.000127,2]
[339030508,1727143832621,-1096.03,0.000127,2]
[339030509,1727143832631,-158.80298801,0.000127,2]
[339030510,1727143832641,-158.31540235,0.000127,2]
[339030511,1727143832650,-169.98498294,0.000127,2]
[339030512,1727143832659,-3062.18791944,0.000127,2]
[339030513,1727143832670,-2203.60884502,0.000127,2]
[339030514,1727143832681,-1151.76242402,0.000127,2]
[339030516,1727143838368,-275.70919094,0.000127,2]
[339030523,1727143838666,-555.555,0.000127,2]
[339030524,1727143838801,-251.17662058,0.000127,2]
[339030525,1727143838811,-189.20637763,0.000127,2]
[339030526,1727143838820,-1005.0,0.000127,2]
[339030527,1727143838830,-249.64121905,0.000127,2]
[339030528,1727143838969,502.42352983,0.0003061,30]
[339030682,1727143840626,-71.82993649,0.000127,2]
[339030684,1727143840636,-9.58502937,0.0001273,2]
[339030888,1727143842674,1202.81,9.907e-05,2]
[339030958,1727143843228,-395.1077141,0.0001217,2]
[339030992,1727143843680,-807.7022859,0.0001217,2]
[339030994,1727143843691,-241.26497063,0.0001273,2]
[339030996,1727143843701,-250.85,0.0001273,2]
[339030998,1727143843710,-3757.85655835,0.0001274,2]
[339031360,1727143850650,480.0,0.0003061,30]
[339031361,1727143878975,512.30106116,0.0003061,30]
[339031362,1727143881321,513.81183988,0.0003061,30]
[339031363,1727143883436,518.79148407,0.0003061,30]
[339031364,1727143886143,511.17451393,0.0003061,30]
[339031365,1727143888458,267.55310394,0.0003061,30]
[339031366,1727143901552,514.44333393,0.0003061,30]
[339031367,1727143920788,1147.98243809,0.00011,2]
[339031368,1727143921106,308.21940032,0.0003061,30]
[339031369,1727143923490,506.30610612,0.0003061,30]
[339031370,1727143926549,518.44858677,0.0003061,30]
[339031371,1727143934880,500.0,0.0003061,30]
[339031372,1727143939252,907.91,0.0003061,30]
[339031373,1727143939755,500.0,0.0003061,30]
[339031374,1727143940042,500.0,0.0003061,30]
[339031375,1727143940221,907.91,0.0003061,30]
[339031376,1727143940366,500.0,0.0003061,30]